bitfinex/quotes_BTCUSD_20250408
["timestamp","ask_amount","ask_price","bid_price","bid_amount"]
[1744135412323,0.0001675,77443.0,77442.0,0.258257]
[1744135412472,0.012913,77439.0,77431.0,0.01454085]
[1744135412674,0.012914,77433.0,77432.0,0.20476]
[1744135412879,0.258285,77434.0,77432.0,0.20476]
[1744135413521,0.258286,77434.0,77432.0,0.20476]
[1744135413720,0.25828,77436.0,77432.0,0.20476]
[1744135413900,0.02861095,77436.0,77432.0,0.20476]
[1744135414122,0.258287,77433.0,77432.0,0.20476]
[1744135414441,0.001,77434.0,77433.0,0.271201]
[1744135414634,0.258254,77443.0,77435.0,0.25828]
[1744135414937,0.012914,77431.0,77400.0,0.38672702]
[1744135415143,0.271243,77421.0,77412.0,0.20476]
[1744135415367,0.3009503,77421.0,77412.0,0.20476]
[1744135415486,0.258354,77413.0,77412.0,0.20476]
[1744135415734,0.27391222,77413.0,77412.0,0.2147676]
[1744135415968,0.01555822,77413.0,77412.0,0.2147676]
[1744135416173,0.271268,77414.0,77412.0,0.2147676]
[1744135416815,0.001,77413.0,77412.0,0.2147676]
[1744135417024,0.38672702,77430.0,77412.0,0.2147676]
[1744135417025,0.258315,77425.0,77421.0,0.258324]
[1744135417238,0.012915,77427.0,77421.0,0.258324]
[1744135417239,0.25831,77427.0,77422.0,0.012916]
[1744135417538,0.258294,77431.0,77424.0,0.012915]
[1744135417814,0.258298,77430.0,77424.0,0.271229]
[1744135417960,0.258307,77427.0,77418.0,0.271253]
[1744135418306,0.12625864,77426.0,77419.0,0.258334]
[1744135418523,0.003,77427.0,77426.0,0.271226]
[1744135418660,0.003,77427.0,77426.0,0.41202549]
[1744135419060,0.00289551,77427.0,77426.0,0.30959086]
[1744135419380,0.00289551,77427.0,77426.0,0.4358495]
[1744135419785,0.00289551,77427.0,77426.0,0.04236486]
[1744135419981,0.27411751,77427.0,77426.0,0.02382401]
[1744135420187,0.012914,77431.0,77426.0,0.28213501]
[1744135420387,0.012914,77431.0,77428.0,0.012915]
[1744135420388,0.01544492,77431.0,77428.0,0.012915]
[1744135420554,0.002,77427.0,77426.0,0.263311]
[1744135420759,0.39948064,77427.0,77426.0,0.005]
[1744135421141,0.8140115,77427.0,77426.0,0.005]
[1744135421339,0.8140115,77427.0,77426.0,0.006]
[1744135421740,0.73645905,77427.0,77426.0,0.005]
[1744135422032,0.012916,77420.0,77414.0,0.012917]
[1744135422250,0.012916,77420.0,77412.0,0.2683586]
[1744135422251,0.012916,77420.0,77412.0,0.0100076]
[1744135422456,0.258352,77414.0,77412.0,0.0100076]
[1744135422628,0.012917,77413.0,77412.0,0.0100076]
[1744135422838,0.2615987,77413.0,77412.0,0.0001254]
[1744135423362,0.6015987,77413.0,77412.0,0.0001254]
[1744135424238,0.47917564,77413.0,77412.0,0.0001254]
[1744135424440,0.48317564,77413.0,77412.0,0.0001254]
[1744135424640,0.016917,77413.0,77412.0,0.0001254]
[1744135424992,0.012917,77416.0,77412.0,0.2584794]
[1744135424993,0.258345,77416.0,77412.0,0.2584794]
[1744135425141,0.005,77413.0,77412.0,0.0130424]
[1744135425747,0.017917,77413.0,77412.0,0.0001254]
[1744135426142,0.48417564,77413.0,77412.0,0.0001254]
[1744135426388,0.47917564,77413.0,77412.0,0.0001254]
[1744135426611,0.012919,77401.0,77379.0,0.012923]
[1744135426852,0.39757164,77401.0,77383.0,0.0132568]
[1744135427144,0.73757164,77401.0,77386.0,0.258444]
[1744135427353,0.73757164,77401.0,77387.0,0.25844]
[1744135427488,0.73757164,77401.0,77394.0,0.01292]
[1744135427697,0.005,77401.0,77400.0,0.00243902]
[1744135427901,0.005,77401.0,77400.0,0.26083602]
[1744135428207,0.005,77401.0,77400.0,0.49265587]
[1744135428977,0.005,77401.0,77400.0,0.61891451]
[1744135429185,0.007,77401.0,77400.0,0.61891451]
[1744135429398,0.00012529,77413.0,77400.0,0.61891451]
[1744135429399,0.00012529,77413.0,77412.0,0.271274]
[1744135429793,0.00012529,77413.0,77412.0,0.28581485]
[1744135430022,0.00012529,77413.0,77412.0,0.41207349]
[1744135430612,0.00012529,77413.0,77412.0,0.4399488]
[1744135430818,0.00012529,77413.0,77412.0,0.4857488]
[1744135431016,0.00012529,77413.0,77412.0,0.4817488]
[1744135431278,0.00012529,77413.0,77412.0,0.49699434]
[1744135431479,2.9e-07,77413.0,77412.0,0.84199434]
[1744135431822,0.44,77450.0,77449.0,0.271145]
[1744135432022,0.00012538,77449.0,77444.0,0.012912]
[1744135432262,0.00012538,77449.0,77448.0,0.012911]
[1744135432464,0.01557059,77449.0,77448.0,0.012911]
[1744135432835,0.00012538,77449.0,77448.0,0.02745185]
[1744135433039,0.00012538,77449.0,77448.0,0.15629273]
[1744135433233,0.00112538,77449.0,77448.0,0.15371049]
[1744135433593,0.00012538,77449.0,77448.0,0.17755033]
[1744135433773,0.00012538,77449.0,77448.0,0.18255033]
[1744135434403,0.00012538,77449.0,77448.0,0.19247334]
[1744135435235,0.00012538,77449.0,77448.0,0.18947334]
[1744135435395,0.00012538,77449.0,77448.0,0.19205535]
[1744135435761,4e-07,77459.0,77458.0,0.61274485]
[1744135436053,4e-07,77459.0,77458.0,0.95623349]
[1744135436255,1e-07,77470.0,77466.0,0.34]
[1744135436417,0.270937,77509.0,77472.0,0.28560485]
[1744135436636,0.270937,77509.0,77472.0,0.46056349]
[1744135436637,0.0330683,77508.0,77472.0,0.46056349]
[1744135436853,0.00029283,77473.0,77472.0,0.46056349]
[1744135437050,0.00029283,77473.0,77472.0,0.48440333]
[1744135437254,0.00029283,77473.0,77472.0,0.49403447]
[1744135437572,0.00029283,77473.0,77472.0,0.50969998]
[1744135437782,0.00029283,77473.0,77472.0,0.52162299]
[1744135438181,0.00029283,77473.0,77472.0,0.50595748]
[1744135438967,0.00129283,77473.0,77472.0,0.51495748]
[1744135439363,0.00129283,77473.0,77472.0,0.05439399]
[1744135439577,0.00129283,77473.0,77472.0,0.06437798]
[1744135439774,0.00129283,77473.0,77472.0,0.24477814]
[1744135440019,0.00129283,77473.0,77472.0,0.38815887]
[1744135440140,0.00029283,77473.0,77472.0,0.37657763]
[1744135440367,0.00029283,77473.0,77472.0,0.36757763]
[1744135440573,0.00029283,77473.0,77472.0,0.37157763]
[1744135440780,0.00029283,77473.0,77472.0,0.37657763]
[1744135441815,0.00029283,77473.0,77472.0,0.37157763]
[1744135442011,0.00029283,77473.0,77472.0,0.36757763]
[1744135442212,0.00029283,77473.0,77472.0,0.40030328]
[1744135442415,0.00129283,77473.0,77472.0,0.39930328]
[1744135442856,0.00029283,77473.0,77472.0,0.39130328]
[1744135443359,0.00129283,77473.0,77472.0,0.40630328]
[1744135443737,0.0004,77489.0,77473.0,0.62560185]
[1744135443939,0.0004,77489.0,77473.0,0.75186049]
[1744135444163,0.0004,77489.0,77473.0,0.77558614]
[1744135444381,4e-07,77474.0,77473.0,0.78743848]
[1744135444930,4e-07,77474.0,77473.0,0.44743848]
[1744135445082,4e-07,77474.0,77473.0,0.43558614]
[1744135445457,4e-07,77474.0,77473.0,0.41186049]
[1744135445863,4e-07,77474.0,77473.0,0.03644785]
[1744135446249,0.0010004,77474.0,77473.0,0.04544785]
[1744135446708,4e-07,77474.0,77473.0,0.02354085]
[1744135446921,4e-07,77474.0,77473.0,0.03644785]
[1744135447137,4e-07,77474.0,77473.0,0.17170649]
[1744135447275,4e-07,77474.0,77473.0,0.55690796]
[1744135447494,4e-07,77474.0,77473.0,0.55432738]
[1744135447671,4e-07,77474.0,77473.0,0.75848738]
[1744135447865,4e-07,77474.0,77473.0,0.85178738]
[1744135448073,4e-07,77489.0,77488.0,0.02744585]
[1744135448317,4e-07,77489.0,77488.0,0.75180849]
[1744135448872,4e-07,77489.0,77488.0,0.77544634]
[1744135449068,4e-07,77489.0,77488.0,0.43544634]
[1744135449272,4e-07,77489.0,77488.0,0.43744634]
[1744135449474,4e-07,77489.0,77488.0,0.82706723]
[1744135450030,0.0010004,77489.0,77488.0,0.84506723]
[1744135450175,0.0010004,77489.0,77488.0,0.84786351]
[1744135450376,4e-07,77489.0,77488.0,0.84786351]
[1744135450624,4e-07,77489.0,77488.0,0.90186351]
[1744135451541,4e-07,77489.0,77488.0,0.64476477]
[1744135451743,4e-07,77489.0,77488.0,0.63676477]
[1744135452168,4e-07,77489.0,77488.0,0.64576477]
[1744135452369,4e-07,77489.0,77488.0,0.63396849]
[1744135452537,4e-07,77489.0,77488.0,0.63392849]
[1744135452742,4e-07,77489.0,77488.0,0.22212]
[1744135453571,4e-07,77489.0,77488.0,0.235025]
[1744135454513,4e-07,77489.0,77488.0,0.22212]
[1744135454953,0.0129054,77489.0,77488.0,0.22212]
[1744135455150,0.258099,77490.0,77488.0,0.21312]
[1744135455444,0.258099,77490.0,77476.0,0.012907]
[1744135455445,0.012906,77483.0,77473.0,0.012907]
[1744135455623,0.258105,77488.0,77482.0,0.20412]
[1744135455832,0.258118,77484.0,77482.0,0.20412]
[1744135456023,0.13916464,77483.0,77482.0,0.20412]
[1744135456370,0.012908,77467.0,77466.0,0.20412]
[1744135456574,0.271142,77450.0,77449.0,0.11384271]
[1744135457174,0.258225,77452.0,77449.0,0.12360968]
[1744135457585,0.258198,77460.0,77452.0,0.258221]
[1744135457778,0.258221,77453.0,77449.0,0.12373501]
[1744135458005,0.387246,77470.0,77449.0,0.12373501]
[1744135458006,0.258176,77467.0,77459.0,0.01291]
[1744135458206,0.258199,77460.0,77455.0,0.01291]
[1744135458411,0.27113,77454.0,77450.0,0.01454085]
[1744135458808,0.271122,77456.0,77449.0,0.0098923]
[1744135459010,0.258146,77476.0,77466.0,0.271085]
[1744135459253,0.258146,77476.0,77457.0,0.01291]
[1744135459254,0.012909,77463.0,77456.0,0.01291]
[1744135459474,0.258191,77463.0,77459.0,0.258198]
[1744135459662,0.258183,77465.0,77458.0,0.01291]
[1744135459867,0.271095,77464.0,77458.0,0.01291]
[1744135460069,0.271095,77464.0,77454.0,0.01291]
[1744135460070,0.012909,77462.0,77455.0,0.01454085]
[1744135460267,0.012909,77460.0,77454.0,0.258216]
[1744135460698,0.001,77463.0,77454.0,0.01291]
[1744135460870,0.001,77463.0,77459.0,0.01291]
[1744135461070,0.001,77463.0,77458.0,0.01291]
[1744135461216,0.001,77463.0,77459.0,0.01291]
[1744135461413,0.259189,77463.0,77459.0,0.271109]
[1744135461828,0.001,77463.0,77460.0,0.258196]
[1744135462036,0.002,77463.0,77460.0,0.271105]
[1744135462240,0.01291,77457.0,77451.0,0.02745185]
[1744135462458,0.271122,77456.0,77449.0,0.0228033]
[1744135462664,0.271122,77456.0,77450.0,0.01454085]
[1744135462665,0.271128,77454.0,77450.0,0.01454085]
[1744135462873,0.258212,77456.0,77451.0,0.012911]
[1744135463102,0.271124,77455.0,77450.0,0.01454085]
[1744135463297,0.271124,77455.0,77449.0,0.2681243]
[1744135463298,0.012911,77452.0,77451.0,0.20384]
[1744135463548,0.012911,77452.0,77451.0,0.20584]
[1744135465004,0.012911,77452.0,77451.0,0.20784]
[1744135465207,0.13916964,77452.0,77451.0,0.20884]
[1744135465427,0.47916964,77452.0,77451.0,0.001]
[1744135465785,0.012911,77450.0,77449.0,0.00012533]
[1744135466070,0.598227,77451.0,77450.0,0.012911]
[1744135466071,0.34,77451.0,77450.0,0.012911]
[1744135466285,0.003,77452.0,77451.0,0.271138]
[1744135466454,0.012909,77465.0,77451.0,0.271138]
[1744135466455,0.258199,77460.0,77456.0,0.258209]
[1744135466660,0.598205,77458.0,77454.0,0.258214]
[1744135466863,0.258211,77456.0,77452.0,0.271132]
[1744135467092,0.34,77458.0,77455.0,0.258214]
[1744135467280,0.012909,77462.0,77456.0,0.258211]
[1744135467479,0.012907,77473.0,77468.0,0.012908]
[1744135467679,0.352908,77470.0,77465.0,0.25818]
[1744135467882,0.258185,77464.0,77462.0,0.20388]
[1744135468128,0.27109,77465.0,77462.0,0.20388]
[1744135468342,0.258181,77465.0,77462.0,0.20388]
[1744135468497,0.13916664,77469.0,77466.0,0.258177]
[1744135468498,0.12625864,77469.0,77466.0,0.258177]
[1744135468701,0.258164,77470.0,77466.0,0.012908]
[1744135468865,0.258164,77470.0,77462.0,0.20388]
[1744135468866,0.012908,77468.0,77462.0,0.20388]
[1744135469072,0.012909,77463.0,77462.0,0.21339942]
[1744135469514,0.258185,77464.0,77462.0,0.21339942]
[1744135470114,0.012909,77463.0,77462.0,0.21339942]
[1744135470273,0.258185,77464.0,77462.0,0.21339942]
[1744135470662,0.25813,77481.0,77472.0,0.258157]
[1744135470814,0.012905,77484.0,77471.0,0.012908]
[1744135471015,0.258132,77480.0,77476.0,0.258144]
[1744135471215,0.012907,77473.0,77466.0,0.271085]
[1744135471420,0.012909,77463.0,77462.0,0.21339942]
[1744135471622,0.271095,77464.0,77462.0,0.21339942]
[1744135471830,0.47916764,77463.0,77462.0,0.20388]
[1744135472015,0.60542309,77463.0,77462.0,0.20388]
[1744135472216,0.60542309,77463.0,77462.0,0.20400533]
[1744135472412,0.60542309,77463.0,77462.0,0.00012533]
[1744135473069,0.60642309,77463.0,77462.0,0.00312533]
[1744135473211,0.60642309,77463.0,77462.0,0.00112533]
[1744135473417,0.47916764,77463.0,77462.0,0.00112533]
[1744135473873,0.48016764,77463.0,77462.0,0.00112533]
[1744135474511,0.48016764,77463.0,77462.0,3.3e-07]
[1744135474512,0.52706764,77463.0,77462.0,3.3e-07]
[1744135474712,0.611163,77444.0,77443.0,1.0224]
[1744135474965,0.611169,77442.0,77441.0,0.0004]
[1744135475091,0.73742764,77442.0,77441.0,0.00052538]
[1744135475285,0.86368309,77442.0,77441.0,0.00052538]
[1744135475514,0.87886773,77442.0,77441.0,0.00052538]
[1744135475712,0.87886773,77442.0,77426.0,0.000335]
[1744135475713,0.611208,77431.0,77430.0,0.00953085]
[1744135476047,0.611208,77431.0,77426.0,0.000335]
[1744135476048,0.611222,77427.0,77426.0,0.000335]
[1744135476270,0.73748064,77427.0,77426.0,0.000335]
[1744135476471,0.86373609,77427.0,77426.0,0.000335]
[1744135476792,0.73748064,77427.0,77426.0,0.000335]
[1744135478287,0.74048064,77427.0,77426.0,0.000335]
[1744135478959,0.74148064,77427.0,77426.0,0.000335]
[1744135481452,0.73848064,77427.0,77426.0,0.000335]
[1744135481655,0.74348064,77427.0,77426.0,0.001335]
[1744135481878,0.61124,77422.0,77415.0,0.20388]
[1744135482083,0.73749864,77422.0,77411.0,0.0004]
[1744135482286,0.73749864,77422.0,77421.0,1e-06]
[1744135482513,0.271313,77401.0,77400.0,0.00143902]
[1744135482714,0.271313,77401.0,77400.0,2e-08]
[1744135482715,0.73757164,77401.0,77400.0,2e-08]
[1744135482943,0.73757164,77401.0,77379.0,0.2042944]
[1744135482944,0.611342,77393.0,77379.0,0.0003344]
[1744135483092,0.73760064,77393.0,77379.0,0.0003344]
[1744135483296,0.012922,77387.0,77381.0,2e-07]
[1744135483477,0.012922,77387.0,77369.0,0.26844137]
[1744135483478,0.012925,77365.0,77358.0,0.000335]
[1744135483673,0.27145,77362.0,77358.0,0.000335]
[1744135483873,0.12625864,77362.0,77361.0,0.00075318]
[1744135484097,0.34,77368.0,77361.0,0.27220518]
[1744135484301,0.34,77371.0,77364.0,0.258518]
[1744135484498,0.34,77369.0,77363.0,0.20396]
[1744135484748,0.258512,77366.0,77363.0,0.20396]
[1744135484889,0.10349666,77365.0,77363.0,0.20396]
[1744135485072,0.012925,77364.0,77363.0,0.20396]
[1744135485272,0.13918364,77364.0,77363.0,0.20396]
[1744135485497,0.012926,77362.0,77361.0,0.00075318]
[1744135485731,0.26544009,77362.0,77361.0,0.00075318]
[1744135485943,0.002,77366.0,77364.0,0.012925]
[1744135486155,0.002,77366.0,77362.0,0.258524]
[1744135486362,0.002,77364.0,77362.0,0.27145]
[1744135486497,0.002,77364.0,77363.0,0.012926]
[1744135487111,0.002,77364.0,77363.0,0.02746685]
[1744135488122,0.271414,77373.0,77369.0,0.2585]
[1744135488322,0.002,77362.0,77361.0,0.00075318]
[1744135488521,0.002,77362.0,77361.0,0.01367918]
[1744135488720,0.002,77362.0,77361.0,0.02822003]
[1744135488924,0.258453,77384.0,77380.0,0.271385]
[1744135489147,0.12625864,77383.0,77378.0,0.012923]
[1744135489417,0.258463,77381.0,77378.0,0.25847]
[1744135489587,0.258465,77380.0,77376.0,0.271398]
[1744135489812,0.12625864,77383.0,77380.0,0.012923]
[1744135489974,0.01292,77398.0,77392.0,0.012921]
[1744135490176,0.258399,77400.0,77393.0,0.012921]
[1744135490378,0.01292,77397.0,77391.0,0.462185]
[1744135490630,0.258411,77396.0,77392.0,0.258423]
[1744135490750,0.012919,77401.0,77392.0,0.258423]
[1744135490751,0.012914,77430.0,77416.0,0.012917]
[1744135490947,0.012914,77430.0,77421.0,0.258326]
[1744135491146,0.258221,77453.0,77422.0,0.012916]
[1744135491147,0.52522188,77431.0,77422.0,0.012916]
[1744135491373,0.271213,77430.0,77424.0,0.258315]
[1744135491741,0.012916,77423.0,77422.0,0.0096904]
[1744135492061,0.012916,77419.0,77411.0,0.012918]
[1744135492261,0.258336,77419.0,77415.0,0.2038]
[1744135492460,0.258336,77419.0,77415.0,0.462146]
[1744135492919,0.258336,77419.0,77410.0,0.271279]
[1744135492920,0.258349,77415.0,77410.0,0.271279]
[1744135493150,0.258364,77411.0,77409.0,1.0238]
[1744135493416,0.012918,77410.0,77409.0,1.0238]
[1744135493598,0.012918,77406.0,77400.0,0.258395]
[1744135493750,0.258383,77405.0,77401.0,0.258393]
[1744135494108,0.271311,77402.0,77400.0,0.00041818]
[1744135494298,0.012919,77401.0,77400.0,0.00041818]
[1744135495737,0.47917764,77401.0,77400.0,0.00141818]
[1744135496184,0.012923,77376.0,77344.0,0.4159]
[1744135496357,0.012923,77376.0,77341.0,0.09972089]
[1744135496358,0.258502,77369.0,77363.0,0.012926]
[1744135496555,0.258502,77369.0,77361.0,0.013261]
[1744135496556,0.012925,77367.0,77361.0,0.000335]
[1744135496761,0.258518,77364.0,77361.0,0.000335]
[1744135497001,0.012925,77366.0,77361.0,0.258861]
[1744135497204,0.012925,77367.0,77362.0,0.258522]
[1744135497684,0.258519,77364.0,77362.0,0.00012529]
[1744135497837,0.3528784,77363.0,77362.0,0.01000943]
[1744135498052,0.271447,77363.0,77362.0,0.00012529]
[1744135498456,0.39770564,77363.0,77362.0,0.00012529]
[1744135499925,0.41268002,77363.0,77362.0,0.00112529]
[1744135500145,0.41268002,77363.0,77362.0,0.00012529]
[1744135500378,0.271447,77363.0,77362.0,0.00012529]
[1744135500843,0.77915723,77363.0,77362.0,2.9e-07]
[1744135501238,0.75292399,77363.0,77362.0,2.9e-07]
[1744135501446,0.75292399,77363.0,77362.0,0.00100029]
[1744135501739,0.75292399,77363.0,77362.0,2.9e-07]
[1744135502144,0.76492399,77363.0,77362.0,0.00100029]
[1744135502364,0.61146,77359.0,77358.0,2.9e-07]
[1744135502528,0.86397409,77359.0,77358.0,8.4e-07]
[1744135503252,0.86397409,77359.0,77356.0,0.000335]
[1744135503253,0.86397409,77359.0,77356.0,8.4e-07]
[1744135503454,0.012928,77347.0,77322.0,0.20384]
[1744135503673,0.611514,77344.0,77343.0,4e-07]
[1744135503956,0.611514,77344.0,77322.0,0.20384]
[1744135503957,0.611559,77331.0,77322.0,0.20384]
[1744135504096,0.85328324,77331.0,77321.0,0.0004]
[1744135504297,0.85328324,77331.0,77330.0,4e-07]
[1744135504517,0.61159,77322.0,77321.0,0.0004]
[1744135504702,0.73784864,77322.0,77321.0,0.00052536]
[1744135504913,0.8400848,77322.0,77321.0,0.00052536]
[1744135505822,0.8400848,77322.0,77321.0,3.6e-07]
[1744135505983,0.611664,77301.0,77300.0,0.01171742]
[1744135506129,0.73792264,77301.0,77300.0,0.01213549]
[1744135506327,0.73792264,77301.0,77300.0,0.00227451]
[1744135506594,0.86417809,77301.0,77300.0,0.00227451]
[1744135506995,0.46625864,77301.0,77300.0,0.00227451]
[1744135507202,0.52522188,77310.0,77300.0,0.00227451]
[1744135507415,0.012935,77305.0,77300.0,0.26100451]
[1744135507612,0.12625864,77309.0,77302.0,0.012936]
[1744135507813,0.1154656,77331.0,77318.0,0.258669]
[1744135507814,0.005,77322.0,77318.0,0.258669]
[1744135507955,0.258665,77320.0,77310.0,0.258697]
[1744135508154,0.271604,77319.0,77314.0,0.258684]
[1744135508377,0.258669,77319.0,77314.0,0.28128252]
[1744135508592,0.263658,77322.0,77314.0,0.28128252]
[1744135508593,0.011,77322.0,77314.0,0.02259852]
[1744135508795,0.011,77322.0,77319.0,0.258665]
[1744135508998,0.011,77322.0,77321.0,0.012933]
[1744135509197,0.011,77322.0,77320.0,0.20392]
[1744135509718,0.01465218,77327.0,77320.0,0.20392]
[1744135509719,0.02758418,77327.0,77320.0,0.20392]
[1744135509920,0.258658,77323.0,77320.0,0.20392]
[1744135510147,0.27158,77325.0,77320.0,0.216853]
[1744135510317,0.258632,77330.0,77324.0,0.258651]
[1744135510522,0.13918964,77330.0,77323.0,0.012932]
[1744135510720,0.001,77322.0,77321.0,0.012933]
[1744135510921,0.001,77322.0,77321.0,0.216853]
[1744135511284,0.01461049,77330.0,77324.0,0.012932]
[1744135511483,0.01293,77337.0,77308.0,0.45149785]
[1744135511484,0.0004,77369.0,77346.0,0.258576]
[1744135511684,0.012931,77330.0,77324.0,0.258649]
[1744135511886,0.258635,77329.0,77325.0,0.20392]
[1744135512098,0.012933,77317.0,77304.0,0.271651]
[1744135512321,0.012934,77312.0,77308.0,0.20392]
[1744135512510,0.012933,77317.0,77308.0,0.20392]
[1744135512511,0.258681,77316.0,77309.0,0.271635]
[1744135512706,0.258681,77316.0,77309.0,0.2587]
[1744135512707,0.012934,77315.0,77309.0,0.2587]
[1744135512946,0.012933,77316.0,77309.0,0.012935]
[1744135513148,0.271633,77310.0,77309.0,0.00963733]
[1744135513388,0.352935,77309.0,77284.0,0.0466]
[1744135513584,0.352935,77309.0,77285.0,0.258779]
[1744135513585,0.012936,77301.0,77285.0,0.258779]
[1744135513823,0.012936,77301.0,77287.0,0.258774]
[1744135513992,0.02747477,77301.0,77286.0,0.271714]
[1744135514170,0.47919464,77301.0,77291.0,0.01002257]
[1744135514377,0.47919464,77301.0,77300.0,0.00227451]
[1744135514571,0.59618963,77301.0,77300.0,0.00227451]
[1744135514778,0.61430155,77301.0,77300.0,0.00227451]
[1744135515153,0.61130155,77301.0,77300.0,0.00227451]
[1744135515367,0.62430155,77301.0,77300.0,0.00227451]
[1744135515635,0.61830155,77301.0,77300.0,0.00227451]
[1744135515968,0.62430155,77301.0,77300.0,0.00227451]
[1744135516374,0.61830155,77301.0,77300.0,0.00227451]
[1744135517241,0.61130155,77301.0,77300.0,0.00227451]
[1744135517845,0.61930155,77301.0,77300.0,0.00227451]
[1744135518053,0.51030656,77301.0,77300.0,0.00227451]
[1744135518363,0.38404792,77301.0,77300.0,0.00227451]
[1744135518547,0.03604792,77301.0,77300.0,0.00227451]
[1744135518889,0.04504792,77301.0,77300.0,0.00227451]
[1744135519246,0.017,77301.0,77300.0,0.20595451]
[1744135519391,0.017,77301.0,77300.0,0.23343136]
[1744135519806,0.017,77301.0,77300.0,0.20595451]
[1744135520048,0.0859671,77301.0,77300.0,0.20595451]
[1744135520250,0.0769671,77301.0,77300.0,0.20595451]
[1744135520585,0.012,77301.0,77300.0,0.20595451]
[1744135520709,0.004,77301.0,77300.0,0.23343136]
[1744135520909,0.007,77301.0,77300.0,0.23343136]
[1744135521151,0.003,77301.0,77300.0,0.23343136]
[1744135521364,0.271651,77305.0,77302.0,0.258724]
[1744135521524,0.258712,77306.0,77302.0,0.258724]
[1744135521723,0.258712,77306.0,77303.0,0.258721]
[1744135521920,0.258723,77303.0,77301.0,0.01454085]
[1744135522196,0.012936,77302.0,77300.0,0.20695451]
[1744135522371,0.258723,77303.0,77300.0,0.20995451]
[1744135522583,0.258704,77309.0,77306.0,0.258711]
[1744135522780,0.012934,77313.0,77306.0,0.012935]
[1744135522978,0.258693,77312.0,77307.0,0.01454085]
[1744135523184,0.271622,77314.0,77311.0,0.258695]
[1744135523382,0.271622,77314.0,77308.0,0.012935]
[1744135523700,0.01501215,77315.0,77311.0,0.012934]
[1744135523898,0.258651,77325.0,77307.0,0.01454085]
[1744135523899,0.012934,77313.0,77312.0,0.20368]
[1744135524098,0.271622,77313.0,77312.0,0.20368]
[1744135524298,0.271664,77301.0,77300.0,1.02715451]
[1744135524497,0.271664,77301.0,77300.0,0.00227451]
[1744135524837,0.258728,77301.0,77300.0,0.00227451]
[1744135525053,0.258725,77302.0,77300.0,0.00227451]
[1744135525275,0.012935,77304.0,77300.0,0.00227451]
[1744135525474,0.012935,77304.0,77301.0,0.01454085]
[1744135525679,0.258712,77306.0,77302.0,0.258724]
[1744135525944,0.258696,77311.0,77307.0,0.258707]
[1744135526115,0.2587,77310.0,77308.0,0.20368]
[1744135526280,0.275623,77313.0,77309.0,0.258699]
[1744135526478,0.258695,77311.0,77308.0,0.20368]
[1744135526907,0.258699,77310.0,77308.0,0.20368]
[1744135527253,0.271637,77309.0,77308.0,0.20368]
[1744135527646,0.29570565,77309.0,77308.0,0.20368]
[1744135527839,0.29570565,77309.0,77308.0,0.20468]
[1744135528220,0.29570565,77309.0,77308.0,0.20368]
[1744135528420,0.29570565,77309.0,77308.0,0.20468]
[1744135528623,0.02406865,77309.0,77308.0,0.20468]
[1744135528824,0.02406865,77309.0,77308.0,0.47532]
[1744135529035,0.29870565,77309.0,77308.0,0.20368]
[1744135529631,0.274637,77309.0,77308.0,0.20368]
[1744135530000,0.275637,77309.0,77308.0,0.20368]
[1744135530484,0.271637,77309.0,77308.0,0.20368]
[1744135530762,0.01457141,77316.0,77315.0,0.258682]
[1744135530936,0.01457141,77316.0,77309.0,0.01454085]
[1744135531184,0.258722,77303.0,77301.0,0.20368]
[1744135531532,0.271661,77302.0,77301.0,0.20368]
[1744135532133,0.271664,77301.0,77300.0,0.00227451]
[1744135532311,0.73792264,77301.0,77300.0,0.00227451]
[1744135532537,0.86417809,77301.0,77300.0,0.00227451]
[1744135533283,0.73792264,77301.0,77300.0,0.00227451]
[1744135533709,0.611664,77301.0,77300.0,0.00227451]
[1744135533912,0.271664,77301.0,77300.0,0.00227451]
[1744135534107,0.276664,77301.0,77300.0,0.00227451]
[1744135534716,0.283664,77301.0,77300.0,0.00227451]
[1744135534994,0.278664,77301.0,77300.0,0.00227451]
[1744135535219,0.273664,77301.0,77300.0,0.00227451]
[1744135535663,0.276664,77301.0,77300.0,0.00227451]
[1744135536364,0.74292264,77301.0,77300.0,0.00227451]
[1744135536779,0.76708347,77301.0,77300.0,0.00227451]
[1744135537068,0.89133892,77301.0,77300.0,0.00227451]
[1744135537316,0.88833892,77301.0,77300.0,0.00227451]
[1744135537491,0.64082483,77301.0,77300.0,0.00227451]
[1744135537906,0.621664,77301.0,77300.0,0.00227451]
[1744135538059,0.618664,77301.0,77300.0,0.00227451]
[1744135538475,0.625664,77301.0,77300.0,0.00227451]
[1744135538682,0.75191945,77301.0,77300.0,0.00227451]
[1744135538887,0.625664,77301.0,77300.0,0.00227451]
[1744135539707,0.75192264,77301.0,77300.0,0.00227451]
[1744135542004,0.625664,77301.0,77300.0,0.00227451]
[1744135542772,0.75192264,77301.0,77300.0,0.00227451]
[1744135546156,0.792214,77301.0,77300.0,5.1e-07]
[1744135546335,0.271695,77292.0,77291.0,5.1e-07]
[1744135546511,0.271695,77292.0,77283.0,0.0003348]
[1744135546512,0.611724,77284.0,77283.0,3.1e-07]
[1744135546715,0.778274,77284.0,77283.0,3.1e-07]
[1744135547523,0.778274,77284.0,77266.0,0.20372]
[1744135547524,0.611759,77274.0,77266.0,0.20372]
[1744135547729,0.73801764,77274.0,77266.0,0.20372]
[1744135547911,0.8402878,77274.0,77261.0,0.0004]
[1744135548707,0.8402878,77274.0,77273.0,0.00020565]
[1744135548912,0.8442878,77274.0,77273.0,6.5e-07]
[1744135549112,0.8442878,77274.0,77269.0,4.5e-07]
[1744135549113,0.611773,77270.0,77269.0,4.5e-07]
[1744135549430,0.79300279,77270.0,77269.0,0.00025256]
[1744135549590,0.91925824,77270.0,77269.0,0.00025256]
[1744135549795,0.79300279,77270.0,77269.0,0.00025256]
[1744135550527,0.75771563,77270.0,77269.0,0.00025256]
[1744135550921,0.76471563,77270.0,77269.0,0.00025256]
[1744135552884,0.75771563,77270.0,77269.0,0.00025256]
[1744135553242,0.76071563,77270.0,77269.0,0.00025256]
[1744135553554,0.89297108,77270.0,77269.0,0.00025256]
[1744135555179,0.89297108,77270.0,77269.0,5.6e-07]
[1744135555550,0.89297108,77270.0,77261.0,0.0004]